bitfinex-derivatives/quotes_ETHF0:USTF0_20250309
["timestamp","ask_amount","ask_price","bid_price","bid_amount"]
[1741544692823,3.2078,2019.9,2019.4,0.00744232]
[1741544693025,0.99035,2019.7,2019.4,0.99789232]
[1741544693523,1.2486,2020.1,2019.4,0.00744232]
[1741544693524,3.2078,2019.6,2019.4,0.00744232]
[1741544693828,3.25,2020.3,2019.5,3.2078]
[1741544694322,3.2078,2019.8,2019.4,0.00744232]
[1741544694630,3.2078,2020.2,2019.4,0.00744232]
[1741544695025,4.19792,2020.2,2019.8,0.99025]
[1741544695217,0.99019,2020.0,2019.7,0.9903]
[1741544695523,0.99002,2020.4,2019.6,5.42493]
[1741544695715,3.2078,2020.5,2020.3,0.98999]
[1741544696027,3.2078,2020.5,2020.0,3.2078]
[1741544696325,0.99006,2020.3,2020.1,0.99012]
[1741544696929,3.2078,2020.2,2019.6,6.1568]
[1741544697115,4.19791,2020.2,2019.9,0.9902]
[1741544697316,4.19791,2020.2,2019.6,6.1568]
[1741544697627,0.99016,2020.1,2019.8,0.99025]
[1741544697823,3.2078,2019.9,2019.4,0.00744232]
[1741544698323,0.99009,2020.2,2019.6,2.47593]
[1741544698627,0.99008,2020.2,2020.0,0.99014]
[1741544698823,0.99009,2020.2,2019.9,0.99018]
[1741544699021,3.2078,2020.3,2019.9,0.99021]
[1741544699216,3.2078,2020.3,2019.5,3.253]
[1741544699417,3.2078,2020.0,2019.4,0.00744232]
[1741544699623,2.4752,2020.2,2019.4,0.00744232]
[1741544699624,0.99042,2019.5,2019.4,0.00744232]
[1741544699825,3.2078,2019.7,2019.4,0.00744232]
[1741544700225,0.99042,2019.5,2019.4,0.00744232]
[1741544700729,6.4548,2019.7,2019.4,0.00744232]
[1741544700924,7.44516,2019.7,2019.4,0.00744232]
[1741544701231,6.4548,2019.7,2019.4,0.00744232]
[1741544701425,7.44513,2019.7,2019.4,0.00744232]
[1741544701725,0.99038,2019.6,2019.4,0.99789232]
[1741544701930,0.99042,2019.5,2019.4,0.00744232]
[1741544702227,3.2078,2019.7,2019.4,0.00744232]
[1741544702427,4.19814,2019.7,2019.5,0.9904]
[1741544702625,0.99037,2019.6,2019.4,0.99787232]
[1741544702928,0.99042,2019.5,2019.4,0.00744232]
[1741544703325,4.99042,2019.5,2019.4,0.00744232]
[1741544703520,2.4763,2019.3,2018.6,0.99085]
[1741544703720,7.237,2019.5,2018.4,4.3796]
[1741544703721,3.2078,2018.9,2018.4,3.2078]
[1741544703923,3.2078,2018.9,2017.8,3.7038]
[1741544704228,0.99123,2017.9,2017.6,1.37567342]
[1741544704531,3.2078,2018.0,2017.4,4.4341]
[1741544704723,3.21524232,2018.0,2017.5,0.00744232]
[1741544705122,0.99133,2017.7,2017.5,0.00744232]
[1741544705324,3.21524232,2018.0,2017.5,0.00744232]
[1741544705625,0.99135,2017.6,2017.5,0.00744232]
[1741544706318,3.2078,2017.7,2017.5,0.00744232]
[1741544706518,3.252,2017.8,2017.5,0.00744232]
[1741544706719,3.2078,2017.8,2017.5,0.00744232]
[1741544706921,0.99132,2017.7,2017.5,0.00744232]
[1741544707324,0.99135,2017.6,2017.5,0.00744232]
[1741544707530,4.23335,2017.6,2017.5,2.32e-06]
[1741544707930,8.23335,2017.6,2017.5,2.32e-06]
[1741544708418,8.23335,2017.6,2015.4,5.68888]
[1741544708419,3.2078,2016.9,2015.4,5.68888]
[1741544708620,3.2078,2016.1,2015.5,0.496]
[1741544708821,3.2078,2016.5,2015.6,2.48084]
[1741544709016,6.4788,2016.8,2016.5,0.99187]
[1741544709226,6.4788,2016.8,2015.9,3.2078]
[1741544709428,3.2078,2016.4,2016.3,0.99199]
[1741544709732,0.00744232,2016.6,2016.4,0.99192]
[1741544709926,3.2078,2016.5,2016.1,0.00744232]
[1741544710133,3.2078,2016.2,2016.1,0.00744232]
[1741544710333,3.2078,2016.5,2016.1,0.00744232]
[1741544710736,0.00744232,2016.6,2016.5,0.99189]
[1741544711033,0.00744232,2016.6,2016.1,0.00744232]
[1741544711228,3.2078,2016.3,2016.1,0.00744232]
[1741544711424,3.2078,2016.3,2016.2,0.99204]
[1741544711625,0.00744232,2016.6,2016.4,0.99192]
[1741544711826,3.72998,2017.3,2016.3,3.2078]
[1741544711827,2.57117,2017.0,2016.3,3.2078]
[1741544712133,3.2078,2017.3,2016.6,3.2078]
[1741544712330,3.2078,2017.6,2016.9,3.2078]
[1741544712526,7.729,2017.9,2017.2,3.2078]
[1741544712835,0.99147,2017.4,2017.0,4.19942]
[1741544713025,0.99145,2017.4,2017.3,0.00744232]
[1741544713523,2.47875,2017.3,2016.2,2.949]
[1741544713723,0.99177,2016.8,2016.4,0.99192]
[1741544714026,3.2078,2017.0,2016.4,3.2078]
[1741544714227,3.2078,2017.3,2017.1,0.99157]
[1741544714428,3.2078,2017.3,2016.7,6.1568]
[1741544714623,3.2078,2017.6,2016.7,6.1568]
[1741544714822,0.99145,2017.4,2016.8,0.00744232]
[1741544715027,0.99145,2017.4,2017.0,0.99161]
[1741544715222,3.2078,2017.6,2016.8,0.00744232]
[1741544715432,3.2078,2017.3,2016.8,0.00744232]
[1741544715929,3.2078,2017.3,2016.9,0.99165]
[1741544716123,0.99156,2017.2,2016.9,0.99165]
[1741544716328,3.2078,2017.3,2017.1,0.99156]
[1741544716631,3.27244232,2017.8,2017.1,3.2078]
[1741544716832,3.27244232,2017.8,2017.6,0.99132]
[1741544716833,0.00744232,2017.8,2017.6,0.99132]
[1741544717143,0.00744232,2017.8,2017.7,0.9913]
[1741544717435,0.00744232,2017.8,2017.5,3.2078]
[1741544717634,2.32e-06,2017.8,2017.7,0.9913]
[1741544717833,5.53588,2018.8,2018.5,0.99091]
[1741544718037,4.4523,2018.9,2018.2,3.2078]
[1741544718331,4.1988,2018.4,2018.0,7.20112]
[1741544718533,3.2078,2018.7,2018.0,3.261]
[1741544718738,4.19878,2018.4,2018.0,0.99115]
[1741544718930,3.2078,2018.4,2018.1,0.00744232]
[1741544719234,3.2078,2018.4,2018.3,0.99101]
[1741544719430,1.2445,2018.9,2018.3,3.2078]
[1741544719623,3.2078,2019.1,2019.0,0.99066]
[1741544719829,3.2078,2019.5,2019.3,0.99048]
[1741544720028,3.2078,2019.5,2018.8,2.47682]
[1741544720231,4.19822,2019.5,2019.2,0.99053]
[1741544720432,0.99047,2019.4,2019.1,0.9906]
[1741544720634,3.2078,2019.5,2019.1,0.00744232]
[1741544720834,0.9905,2019.4,2019.1,0.00744232]
[1741544721030,1.1816,2019.7,2019.1,0.00744232]
[1741544721231,6.4708,2019.9,2019.2,3.2078]
[1741544721637,3.2078,2020.2,2019.3,2.4763]
[1741544721940,0.99036,2019.7,2019.3,0.9905]
[1741544722233,2.4753,2020.2,2019.3,0.38525789]
[1741544722234,6.4678,2020.2,2019.3,0.38525789]
[1741544722430,0.99013,2020.1,2019.5,3.2078]
[1741544722626,0.99024,2019.9,2019.6,0.99035]
[1741544722933,3.2078,2019.7,2019.1,0.00744232]
[1741544723136,3.2078,2019.4,2019.3,0.99052]
[1741544723528,3.2078,2019.9,2019.1,0.00744232]
[1741544723736,4.19803,2019.9,2019.6,0.99035]
[1741544724037,4.19804,2019.9,2019.6,0.99037]
[1741544724338,3.2078,2019.9,2019.1,0.4065213]
[1741544724744,0.99032,2019.7,2019.4,0.99045]
[1741544725032,3.2078,2019.9,2019.7,0.99032]
[1741544725238,3.2078,2019.9,2019.6,3.2078]
[1741544725239,3.2078,2019.9,2019.8,0.99027]
[1741544725433,3.2078,2019.9,2019.6,3.2078]
[1741544725835,4.19802,2019.9,2019.6,4.19815]
[1741544726033,3.2078,2019.9,2019.3,6.4918]
[1741544726230,3.2078,2019.9,2019.3,3.284]
[1741544726429,0.99029,2019.8,2019.3,6.4918]
[1741544726635,3.2078,2019.9,2019.6,0.99034]
[1741544726832,3.2078,2019.9,2019.3,3.284]
[1741544727142,0.99057,2019.2,2019.1,0.00744232]
[1741544727744,3.2078,2019.5,2019.1,0.00744232]
[1741544727745,0.9905,2019.4,2019.1,0.00744232]
[1741544728043,3.2078,2019.5,2019.1,0.00744232]
[1741544728637,4.19822,2019.5,2019.2,0.99053]
[1741544728835,3.2078,2019.5,2019.3,0.9905]
[1741544729037,3.2078,2019.5,2019.1,0.00744232]
[1741544729335,3.274,2019.8,2019.5,0.9904]
[1741544729336,7.47211,2019.8,2019.5,0.9904]
[1741544729531,0.99032,2019.7,2019.5,0.9904]
[1741544729736,6.4818,2019.8,2019.2,2.949]
[1741544729941,0.99037,2019.6,2019.4,0.99046]
[1741544730237,0.99057,2019.2,2019.1,0.00744232]
[1741544730436,0.99078,2018.8,2018.5,0.99091]
[1741544730642,0.99078,2018.8,2018.6,0.99084]
[1741544730943,0.99078,2018.8,2018.6,0.99083]
[1741544731235,3.2078,2018.9,2018.3,1.2473]
[1741544731432,3.2078,2018.5,2017.7,2.3913]
[1741544731628,5.75391,2018.8,2017.7,2.3913]
[1741544731629,0.99119,2018.0,2017.7,2.3913]
[1741544731831,4.19886,2018.2,2017.9,0.00744232]
[1741544732037,3.2078,2018.6,2017.9,0.00744232]
[1741544732339,0.00744232,2018.8,2018.2,3.2078]
[1741544732734,0.00744232,2018.8,2018.7,0.99081]
[1741544732937,0.00744232,2018.8,2018.5,3.2078]
[1741544733139,3.2078,2018.7,2018.4,2.949]
[1741544733333,0.00744232,2018.8,2018.4,2.949]
[1741544733334,4.20602232,2018.8,2018.4,2.949]
[1741544733537,3.21524232,2018.8,2018.2,3.275]
[1741544733839,0.99099,2018.4,2018.1,3.2078]
[1741544734036,6.48824232,2018.8,2018.1,3.2078]
[1741544734335,6.48824232,2018.8,2018.2,0.99103]
[1741544734336,0.99096,2018.4,2018.2,0.99103]
[1741544734643,7.47901232,2018.8,2018.1,5.68557]
[1741544734846,7.47901232,2018.8,2018.5,0.99088]
[1741544735035,7.47901232,2018.8,2018.1,5.68557]
[1741544735231,7.47901232,2018.8,2018.6,0.99086]
[1741544735437,0.00744232,2018.8,2018.7,0.99081]
[1741544735635,3.2078,2019.4,2018.7,4.19861]
[1741544735833,4.5381,2019.6,2018.7,2.949]
[1741544736037,3.2078,2019.4,2018.7,3.445]
[1741544736342,0.99058,2019.2,2018.9,0.99068]
[1741544736544,4.19829,2019.4,2019.1,0.99059]
[1741544736745,4.5381,2019.6,2018.8,0.00744232]
[1741544736940,0.9905,2019.4,2018.8,0.00744232]
[1741544737131,0.9905,2019.4,2019.1,0.99059]
[1741544737335,3.2078,2019.4,2019.2,0.99054]
[1741544737933,3.2078,2019.4,2018.8,0.00744232]
[1741544738133,3.2078,2019.4,2019.1,0.9906]
[1741544738336,3.2078,2019.4,2018.8,0.00744232]
[1741544738337,4.19829,2019.4,2018.8,0.00744232]
[1741544738536,3.2078,2019.4,2019.1,0.99059]
[1741544738743,0.99055,2019.3,2018.8,0.00744232]
[1741544738937,0.99055,2019.3,2019.0,0.99063]
[1741544739245,2.47689,2018.9,2018.2,0.99104]
[1741544739448,3.2078,2018.6,2018.1,3.2078]
[1741544739748,3.2078,2018.6,2018.5,0.99091]
[1741544739952,3.2078,2018.9,2018.1,3.2078]
[1741544740137,3.2078,2018.9,2018.1,6.1568]
[1741544740339,3.2078,2018.5,2018.2,0.99103]
[1741544740538,0.99098,2018.4,2018.3,0.00744232]
[1741544740834,2.47775,2018.2,2017.4,1.35989346]
[1741544741034,3.2078,2017.9,2017.4,0.36847346]
[1741544741237,0.99128,2017.8,2017.4,0.36847346]
[1741544741438,3.2078,2017.9,2017.4,0.36847346]
[1741544741645,3.267,2018.1,2018.0,0.99115]
[1741544741838,4.5019,2018.3,2017.9,3.2078]
[1741544742046,3.2078,2018.3,2018.2,0.99106]
[1741544742250,3.2078,2018.6,2018.5,0.99091]
[1741544742643,4.19867,2018.6,2018.4,0.99094]
[1741544742844,4.19867,2018.6,2018.3,0.99098]
[1741544743044,3.27144232,2018.7,2018.0,2.47789]
[1741544743240,0.00744232,2018.7,2018.6,0.99086]
[1741544743748,0.00744232,2018.7,2018.2,8.63445]
[1741544743952,0.00744232,2018.7,2018.6,0.99086]
[1741544744150,0.00744232,2018.7,2018.2,8.63445]
[1741544744347,0.00744232,2018.7,2018.2,6.1568]
[1741544744543,3.2078,2018.6,2018.2,2.949]
[1741544744942,3.2078,2018.6,2018.5,0.99091]
[1741544745146,0.00744232,2018.7,2018.2,6.1568]
[1741544745346,0.99089,2018.6,2018.4,0.99096]
[1741544745549,0.00744232,2018.7,2018.4,0.99096]
[1741544745748,0.99828232,2018.7,2018.4,0.99096]
[1741544745951,0.00744232,2018.7,2018.4,0.99096]
[1741544746148,0.00744232,2018.7,2018.2,3.2078]
[1741544746351,0.00744232,2018.7,2017.8,30.90953232]
[1741544746352,3.2078,2018.5,2018.0,0.99112]
[1741544746553,0.9912,2017.9,2017.8,0.00744232]
[1741544747450,4.199,2017.9,2017.8,0.00744232]
[1741544747652,0.9912,2017.9,2017.8,0.00744232]
[1741544747856,0.99113,2018.1,2017.9,0.99118]
[1741544748051,0.99118,2018.0,2017.8,0.99866232]
[1741544748654,3.2078,2018.2,2017.8,0.00744232]
[1741544748860,0.99098,2018.4,2018.2,0.99104]
[1741544749061,3.2078,2018.6,2018.0,5.42689]
[1741544749261,0.00744232,2018.7,2018.6,0.99086]
[1741544749752,0.00744232,2018.7,2018.0,2.4351]
[1741544749753,0.9912,2017.9,2017.8,0.00744232]
[1741544749949,3.2078,2018.0,2017.2,6.37561]
[1741544750152,3.2078,2017.7,2017.2,5.3841]
[1741544750453,4.19912,2017.7,2017.2,7.3732]
[1741544750657,3.2078,2017.7,2017.2,7.3732]
[1741544750853,0.9915,2017.3,2017.1,0.99157]
[1741544751254,4.20671232,2017.4,2017.2,0.99151]
[1741544751454,0.00744232,2017.4,2017.3,0.9915]
[1741544751661,0.99891232,2017.4,2017.2,0.99152]
[1741544752155,0.00744232,2017.4,2017.3,0.9915]
[1741544754557,0.00744232,2017.4,2017.3,11.1483]
[1741544754756,0.9913,2017.7,2017.3,6.1568]
[1741544754961,6.4378,2018.0,2017.3,6.1568]
[1741544755160,3.2078,2018.0,2017.7,0.99129]
[1741544755459,0.99122,2017.9,2017.7,0.99129]
[1741544755660,0.9913,2017.8,2017.3,2.949]
[1741544755966,3.2078,2018.0,2017.3,6.1568]
[1741544755967,3.21524232,2018.0,2017.3,6.1568]
[1741544756161,3.21524232,2018.0,2017.3,2.949]
[1741544756464,3.21524232,2018.0,2017.4,3.2078]
[1741544756664,3.2078,2017.7,2017.3,2.949]
[1741544756965,3.2078,2017.7,2017.5,0.99137]
[1741544757166,0.99135,2017.6,2017.4,0.99143]
[1741544757370,0.99135,2017.6,2017.5,0.9914]
[1741544757556,3.2078,2017.7,2017.5,0.9914]
[1741544757757,0.99145,2017.4,2017.3,2.949]
[1741544757967,3.2078,2017.7,2017.0,26.44574232]
[1741544758163,0.99146,2017.4,2017.1,0.496]
[1741544758361,0.99146,2017.4,2017.0,26.44574232]
[1741544758362,3.2078,2017.4,2017.2,0.99153]
[1741544758557,3.2078,2017.4,2017.0,25.18744232]
[1741544758863,3.2078,2017.4,2017.0,2.95644232]
[1741544759567,0.99152,2017.3,2017.2,0.99155]
[1741544759768,3.67351,2017.7,2017.1,2.47899]
[1741544759769,4.403,2017.7,2017.1,2.47899]
[1741544759959,4.403,2017.7,2017.2,2.47888]
[1741544759960,3.2078,2017.7,2017.2,2.47888]
[1741544760161,3.2078,2017.7,2017.6,0.99135]
[1741544760970,0.99122,2017.9,2017.8,0.99125]
[1741544761156,3.21524232,2018.0,2017.4,2.949]
[1741544761357,0.9914,2017.5,2017.4,2.949]
[1741544761563,3.2078,2017.7,2017.0,2.95644232]
[1741544761564,0.99148,2017.4,2017.0,2.95644232]
[1741544761762,3.2078,2017.7,2017.3,0.99148]
[1741544761966,3.21524232,2018.0,2017.4,3.2078]
[1741544762160,3.21524232,2018.0,2017.3,2.949]
[1741544762161,0.00744232,2018.0,2017.9,0.9912]
[1741544762372,0.00744232,2018.0,2017.3,2.949]
[1741544762561,3.21524232,2018.0,2017.3,2.949]
[1741544762766,3.21524232,2018.0,2017.4,3.2078]
[1741544762959,2.32e-06,2018.0,2017.9,0.9912]
[1741544763162,2.985,2019.3,2018.0,2.47788]
[1741544763163,3.2078,2019.0,2018.0,2.47788]
[1741544763468,3.2078,2019.0,2018.1,5.42677]
[1741544763671,3.2078,2019.0,2018.2,2.47755]
[1741544763972,3.2078,2019.0,2018.2,5.68545]
[1741544764264,0.00744232,2018.8,2018.5,3.2078]
[1741544764470,0.00744232,2018.8,2018.4,0.00744232]
[1741544764665,3.2078,2019.0,2018.9,0.99071]
[1741544764869,3.2078,2019.3,2019.2,0.99057]
[1741544765065,0.99033,2019.7,2019.4,0.99044]
[1741544765375,3.2078,2019.6,2019.2,0.99056]
[1741544765666,3.2078,2019.6,2019.5,0.99042]
[1741544765860,3.205,2019.8,2019.6,0.99035]
[1741544765861,3.204,2019.8,2019.6,0.99035]
[1741544766063,3.204,2019.8,2019.7,0.99032]
[1741544766270,4.19804,2019.9,2019.6,0.99035]
[1741544766668,4.19804,2019.9,2019.2,0.00744232]
[1741544766669,3.2078,2019.9,2019.8,0.99027]
[1741544766861,2.985,2020.8,2020.2,0.99004]
[1741544766862,4.1977,2020.6,2020.2,0.99004]
[1741544767070,3.2078,2020.6,2020.2,0.99004]
[1741544767269,3.2078,2020.6,2019.8,3.2078]
[1741544767573,4.1977,2020.6,2019.8,3.2078]
[1741544767773,0.98994,2020.5,2019.8,3.2078]
[1741544767972,3.2078,2020.3,2019.8,0.99023]
[1741544768169,0.99016,2020.1,2019.8,0.99027]
[1741544768366,0.99011,2020.2,2019.8,0.99027]
[1741544768669,0.99011,2020.2,2019.4,4.4506]
[1741544768670,3.2078,2020.0,2019.4,3.2078]
[1741544768973,5.68333,2020.0,2019.2,0.00744232]
[1741544769164,3.2078,2019.4,2019.2,0.00744232]
[1741544769474,0.99039,2019.6,2019.3,0.99052]
[1741544769668,6.4108,2019.8,2019.2,0.00744232]
[1741544769866,4.4316,2020.1,2019.3,3.2078]
[1741544770170,3.2078,2019.7,2019.4,0.99044]
[1741544770366,0.99011,2020.2,2019.2,0.00744232]
[1741544770575,3.2078,2020.3,2019.6,0.99034]
[1741544770766,3.2078,2019.9,2019.7,0.99031]
[1741544771067,3.2078,2020.2,2019.4,3.2078]
[1741544771272,3.2078,2020.2,2019.4,6.4108]
[1741544771475,1.2238,2020.6,2019.9,0.99018]
[1741544771476,0.99003,2020.3,2019.9,0.99018]
[1741544771676,0.99009,2020.2,2019.9,0.99019]
[1741544771867,3.2078,2020.4,2020.0,0.99016]
[1741544772169,3.2078,2020.4,2019.6,2.949]
[1741544772373,3.2078,2020.7,2020.1,3.2078]
[1741544772667,3.2078,2020.7,2020.6,0.98988]
[1741544773070,3.2078,2021.6,2020.6,4.0]
[1741544773265,0.39838039,2022.4,2021.7,0.98934]
[1741544773266,4.389,2022.2,2021.7,0.98934]
[1741544773465,18.09009881,2021.8,2021.7,0.98934]
[1741544773671,8.16339601,2021.8,2021.7,0.98934]
[1741544773876,3.2078,2022.5,2022.3,0.98901]
[1741544774068,3.2078,2022.5,2021.8,0.4952]
[1741544774272,3.202,2022.4,2021.7,3.2078]
[1741544774473,3.2078,2021.8,2021.5,0.00742354]
[1741544774664,4.1971,2021.8,2021.5,0.00742354]
[1741544774868,8.39561,2022.2,2021.5,0.00742354]
[1741544775071,0.98927,2021.9,2021.5,0.00742354]
[1741544775266,6.92284,2022.3,2021.5,0.00742354]
[1741544775465,0.98932,2021.8,2021.5,0.00742354]
[1741544775675,3.2078,2022.3,2021.7,3.2078]
[1741544775879,0.98893,2022.6,2021.9,3.2078]
[1741544776070,4.19669,2022.7,2022.3,0.98901]
[1741544776270,4.19667,2022.7,2022.2,3.2078]
[1741544776470,3.2078,2022.7,2022.2,3.2078]
[1741544776765,3.2078,2023.3,2022.5,3.2078]
[1741544776970,21.99779178,2023.2,2022.8,0.98877]
[1741544777270,21.00915178,2023.2,2022.5,3.2078]
[1741544777476,0.98875,2022.9,2022.8,0.00742354]
[1741544778075,2.47206,2022.8,2021.7,0.4944]
[1741544778278,0.98915,2022.1,2021.7,0.98931]
[1741544778479,3.2,2022.7,2021.7,0.4952]
[1741544778774,3.2078,2022.4,2021.6,3.2078]
[1741544778985,6.4078,2022.7,2021.7,3.2078]
[1741544779185,3.2078,2023.0,2022.5,3.2078]
[1741544779373,4.19654,2023.0,2022.6,0.98888]
[1741544779675,3.2078,2023.3,2022.5,3.2078]
[1741544779876,9.3e-07,2023.0,2022.9,4.19655]
[1741544780069,9.3e-07,2023.0,2022.9,0.98875]
[1741544780267,0.98875093,2023.0,2022.6,8.0397286]
[1741544780680,9.3e-07,2023.0,2022.9,0.98875]
[1741544780882,9.3e-07,2023.0,2022.6,8.0397286]
[1741544781176,9.3e-07,2023.0,2022.7,0.00742354]
[1741544781579,0.98877,2022.9,2022.7,0.00742354]
[1741544781780,9.3e-07,2023.0,2022.7,0.00742354]
[1741544782266,0.98829,2023.9,2022.9,4.19655]
[1741544782472,3.2078,2024.0,2023.3,3.2078]
[1741544782872,3.2078,2024.0,2023.4,2.47128]
[1741544783075,4.4953,2024.4,2023.7,3.2078]
[1741544783278,3.2078,2024.4,2023.7,3.2078]
[1741544783468,3.2078,2024.4,2024.3,0.98807]
[1741544783668,3.2078,2024.8,2024.0,3.2078]
[1741544783875,3.2078,2024.8,2024.1,0.00742354]
[1741544784070,3.2078,2024.8,2024.2,0.98809]
[1741544784275,3.2078,2024.8,2024.1,0.00742354]
[1741544784479,0.98807,2024.3,2024.1,0.00742354]
[1741544784670,3.2078,2024.5,2024.1,0.00742354]
[1741544784874,3.2078,2024.8,2024.1,0.00742354]
[1741544785071,3.2078,2024.8,2024.3,3.2078]
[1741544785274,3.2078,2024.8,2024.4,0.988]
[1741544785572,3.2078,2024.8,2024.3,5.0907286]
[1741544785775,3.2078,2024.8,2024.4,0.98802]
[1741544786078,3.2078,2024.8,2024.4,0.98801]
[1741544786280,3.2078,2024.8,2024.3,6.2709286]
[1741544786477,3.2078,2024.8,2024.4,4.8319286]
[1741544786677,3.2078,2025.6,2024.6,3.2078]
[1741544786878,3.2078,2025.6,2025.1,4.19545]
[1741544787177,3.2078,2025.6,2025.1,0.00742354]
[1741544787383,0.98763,2025.2,2025.1,0.00742354]
[1741544787684,3.2078,2025.3,2024.4,3.2078]
[1741544787879,3.2078,2025.0,2024.4,3.2078]
[1741544788383,2.46901,2025.3,2024.1,3.2078]
[1741544788384,0.98806,2024.4,2024.1,3.2078]
[1741544788584,3.2078,2024.7,2024.1,3.2078]
[1741544788882,0.00736124,2024.5,2024.1,3.2078]
[1741544789288,0.00736124,2024.5,2024.1,4.19595]
[1741544789489,0.98812,2024.2,2024.1,3.2078]
[1741544789680,3.2078,2024.4,2024.1,3.2078]
[1741544789884,0.00736124,2024.5,2024.1,4.19594]
[1741544790185,3.21516124,2024.5,2024.0,0.00740485]
[1741544790480,0.98817,2024.1,2024.0,0.00740485]
[1741544791084,4.0,2024.1,2023.5,3.2078]
[1741544791388,0.98864,2023.2,2023.0,2.949]
[1741544791584,3.2078,2023.5,2022.7,5.41113]
[1741544791890,3.2078,2023.5,2022.7,4.4223]
[1741544792080,3.195,2023.6,2022.7,4.4223]
[1741544792081,0.98869,2023.1,2022.7,5.41113]
[1741544792282,2.5137,2023.8,2023.0,3.2078]
[1741544792480,0.00740485,2023.3,2023.2,0.98861]
[1741544792681,0.00740485,2023.3,2023.0,5.0907286]
[1741544792984,0.98861,2023.2,2022.9,0.00740485]
[1741544793185,0.00740485,2023.3,2023.0,3.2078]
[1741544793490,0.00740485,2023.3,2023.2,0.98861]
[1741544793688,0.00740485,2023.3,2023.0,3.2078]
[1741544793885,0.00740485,2023.3,2022.9,0.00740485]
[1741544794086,0.00740485,2023.3,2023.2,0.98861]
[1741544794392,0.00740485,2023.3,2022.9,3.21520485]
[1741544794586,0.98866,2023.1,2022.9,3.21520485]
[1741544794786,0.99600485,2023.3,2022.9,4.20393485]
[1741544795094,2.47175,2023.1,2022.3,0.98903]
[1741544795278,3.2078,2022.6,2022.2,3.2078]
[1741544795482,0.98898,2022.5,2022.2,4.19687]
[1741544795679,3.2078,2022.9,2022.2,3.2078]
[1741544795884,0.98887,2022.7,2022.2,3.2078]
[1741544796082,0.98884,2022.8,2022.4,0.98897]
[1741544796688,3.2078,2022.9,2022.2,3.21520485]
[1741544797383,0.98894,2022.6,2022.4,0.98898]
[1741544797587,3.2078,2022.9,2022.2,3.21520485]
[1741544798195,0.98887,2022.7,2022.4,0.98896]
[1741544798385,0.98894,2022.6,2022.2,3.21520485]
[1741544798585,2.47201,2022.8,2022.2,4.20429485]
[1741544798787,3.2078,2022.9,2022.2,3.21520485]
[1741544798988,0.98901,2022.4,2022.2,4.20428485]
[1741544799186,5.67978,2022.9,2022.2,3.21520485]
[1741544799384,0.98892,2022.6,2022.4,0.98899]
[1741544799580,3.2078,2022.9,2022.2,3.21520485]
[1741544799783,0.98886,2022.7,2022.5,0.98893]
[1741544799995,3.2078,2022.9,2022.2,3.21520485]
[1741544800391,0.98904,2022.4,2022.2,3.21520485]
[1741544800596,3.2078,2022.6,2022.2,3.21520485]
[1741544800895,3.2078,2022.9,2022.2,3.21520485]
[1741544801189,3.2078,2022.6,2022.2,4.20429485]
[1741544801391,0.98889,2022.7,2022.4,0.98899]
[1741544801690,2.47214,2022.7,2022.2,3.21520485]
[1741544801895,0.98905,2022.3,2022.2,0.00740485]
[1741544802095,5.67975,2022.9,2022.2,0.00740485]
[1741544802289,0.98895,2022.5,2022.2,0.00740485]
[1741544802497,3.196,2022.7,2022.4,0.98896]
[1741544802692,3.196,2022.7,2022.4,0.98899]
[1741544802997,0.98899,2022.5,2022.2,0.00740485]
[1741544803198,3.2078,2022.6,2022.2,0.00740485]
[1741544803410,0.98896,2022.5,2022.2,0.00740485]
[1741544803692,0.98905,2022.3,2022.2,0.00740485]
[1741544804696,3.2078,2022.6,2022.2,0.00740485]
[1741544804897,0.98905,2022.3,2022.2,0.00740485]
[1741544805296,0.98898,2022.5,2022.3,0.98903]
[1741544805489,3.2078,2022.6,2022.2,0.00740485]
[1741544805690,0.98905,2022.3,2022.2,0.00740485]
[1741544805901,4.19685,2022.3,2022.2,0.00740485]
[1741544806091,7.2078,2022.3,2021.6,3.2078]
[1741544806291,0.98954,2021.3,2021.2,0.98959]
[1741544806599,3.2078,2021.6,2021.0,2.949]
[1741544806901,3.196,2021.7,2021.0,2.949]
[1741544807192,0.00740485,2021.6,2021.1,0.00740485]
[1741544807395,3.21520485,2021.6,2021.1,0.00740485]
[1741544807594,0.00740485,2021.6,2021.5,0.98944]
[1741544808901,3.2078,2022.4,2021.7,2.47324]
[1741544809094,3.2078,2022.4,2021.6,4.5013]
[1741544809293,3.2078,2022.1,2021.6,4.5013]
[1741544809490,0.98922,2022.0,2021.8,0.98926]
[1741544809690,0.98921,2022.0,2021.8,0.98925]
[1741544809901,3.21520485,2022.1,2022.0,0.98919]
[1741544810594,3.2078,2022.4,2022.3,0.98905]
[1741544810793,3.2078,2022.4,2022.0,2.949]
[1741544810990,3.2078,2022.1,2022.0,2.949]
[1741544811197,3.2078,2022.4,2022.0,2.949]
[1741544811591,3.2078,2022.1,2021.7,3.197]
[1741544811792,0.98909,2022.3,2022.1,0.98914]
[1741544811999,4.20422485,2022.4,2022.2,0.98907]
[1741544812303,0.98911,2022.2,2022.0,0.99656485]
[1741544812499,0.98911,2022.2,2022.1,0.98914]
[1741544812695,3.21520485,2022.4,2022.0,0.00740485]
[1741544813000,4.19694,2022.1,2022.0,0.00740485]
[1741544813200,3.2078,2022.1,2021.0,10.5031386]
[1741544813502,0.98942,2021.6,2021.0,5.42317]
[1741544813699,3.2078,2021.4,2020.9,3.59987186]
[1741544813905,0.98956,2021.3,2021.1,0.98959]
[1741544814097,3.2078,2021.4,2020.9,3.59987186]
[1741544814401,3.2078,2021.8,2020.9,3.59987186]
[1741544814598,3.2078,2021.8,2021.7,0.98933]
[1741544814906,3.20440485,2022.0,2021.9,0.98924]
[1741544815196,3.20440485,2022.0,2021.8,0.98927]
[1741544815197,4.19363485,2022.0,2021.8,0.98927]